[Event "SELL Games"]
[Site "Tartu, Estonia"]
[Date "2023.05.20"]
[Round "8.8"]
[White "Perminaite, Guoda"]
[Black "Galdikaite, Greta"]
[Result "1-0"]
[TimeControl "15min + 10sec per move each"]
[WhiteFideId "12808784"]
[BlackFideId "12819956"]
[WhiteElo "1725"]
[BlackElo "1195"]

1. e4 {[%clk 00:15:19]} e5 {[%clk 00:15:19]} {[%emt 00:00:02]} 2. Nf3 {[%clk
00:15:28]} Nc6 {[%clk 00:15:17]} {[%emt 00:00:12]} 3. Bb5 {[%clk 00:15:36]}
{[%emt 00:00:01]} d6 {[%clk 00:15:16]} {[%emt 00:00:12]} 4. c3 {[%clk
00:15:29]} {[%emt 00:00:16]} Nf6 {[%clk 00:15:08]} {[%emt 00:00:18]} 5. d3
{[%clk 00:15:35]} {[%emt 00:00:04]} Bg4 {[%clk 00:14:48]} {[%emt 00:00:31]} 6.
O-O {[%clk 00:15:32]} {[%emt 00:00:13]} a6 {[%clk 00:14:17]} {[%emt 00:00:42]}
7. Ba4 {[%clk 00:15:40]} {[%emt 00:00:01]} Be7 {[%clk 00:14:15]} {[%emt
00:00:12]} 8. Re1 {[%clk 00:15:40]} {[%emt 00:00:09]} O-O {[%clk 00:14:11]}
{[%emt 00:00:14]} 9. Nbd2 {[%clk 00:15:46]} {[%emt 00:00:03]} Nh5 {[%clk
00:11:51]} {[%emt 00:02:32]} 10. h3 {[%clk 00:14:52]} {[%emt 00:01:04]} Bd7
{[%clk 00:11:52]} {[%emt 00:00:09]} 11. Nf1 {[%clk 00:13:18]} {[%emt 00:01:43]}
Nf6 {[%clk 00:06:49]} {[%emt 00:05:13]} 12. Ng3 {[%clk 00:13:09]} {[%emt
00:00:19]} h6 {[%clk 00:06:31]} {[%emt 00:00:29]} 13. Be3 {[%clk 00:12:38]}
{[%emt 00:00:41]} b5 {[%clk 00:05:07]} {[%emt 00:01:34]} 14. Bb3 {[%clk
00:12:46]} {[%emt 00:00:02]} Qc8 {[%clk 00:05:02]} {[%emt 00:00:16]} 15. d4
{[%clk 00:11:02]} {[%emt 00:01:54]} Na5 {[%clk 00:04:33]} {[%emt 00:00:38]} 16.
Bc2 {[%clk 00:11:03]} {[%emt 00:00:08]} Nc4 {[%clk 00:04:23]} {[%emt 00:00:21]}
17. b3 {[%clk 00:10:14]} {[%emt 00:00:59]} Nxe3 {[%clk 00:03:58]} {[%emt
00:00:36]} 18. Rxe3 {[%clk 00:10:22]} {[%emt 00:00:01]} exd4 {[%clk 00:03:50]}
{[%emt 00:00:18]} 19. cxd4 {[%clk 00:10:26]} {[%emt 00:00:05]} c6 {[%clk
00:03:45]} {[%emt 00:00:16]} 20. Qd3 {[%clk 00:10:17]} {[%emt 00:00:18]} Nh7
{[%clk 00:03:27]} {[%emt 00:00:29]} 21. e5 {[%clk 00:08:56]} {[%emt 00:01:32]}
g6 {[%clk 00:03:17]} {[%emt 00:00:21]} 22. Rae1 {[%clk 00:08:08]} {[%emt
00:00:57]} Be6 {[%clk 00:03:04]} {[%emt 00:00:22]} 23. exd6 {[%clk 00:07:57]}
{[%emt 00:00:22]} Bxd6 {[%clk 00:03:12]} {[%emt 00:00:02]} 24. Rxe6 {[%clk
00:08:04]} {[%emt 00:00:03]} Qd7 {[%clk 00:01:45]} {[%emt 00:01:38]} 25. R6e2
{[%clk 00:07:15]} {[%emt 00:00:59]} Nf6 {[%clk 00:00:56]} {[%emt 00:00:59]} 26.
Ne5 {[%clk 00:06:39]} {[%emt 00:00:45]} Bxe5 {[%clk 00:00:55]} {[%emt
00:00:11]} 27. dxe5 {[%clk 00:06:47]} {[%emt 00:00:01]} Qxd3 {[%clk 00:01:01]}
{[%emt 00:00:05]} 28. Bxd3 {[%clk 00:06:56]} {[%emt 00:00:01]} Nd5 {[%clk
00:01:07]} {[%emt 00:00:04]} 29. Be4 {[%clk 00:06:44]} {[%emt 00:00:21]} Rad8
{[%clk 00:00:37]} {[%emt 00:00:40]} 30. Bxd5 {[%clk 00:06:22]} {[%emt
00:00:32]} Rxd5 {[%clk 00:00:46]} {[%emt 00:00:02]} 31. e6 {[%clk 00:06:30]}
{[%emt 00:00:02]} fxe6 {[%clk 00:00:36]} {[%emt 00:00:20]} 32. Rxe6 {[%clk
00:06:38]} {[%emt 00:00:02]} Rc5 {[%clk 00:00:38]} {[%emt 00:00:08]} 33. Rxg6+
{[%clk 00:06:43]} {[%emt 00:00:05]} 1-0

[Event "SELL Games"]
[Site "Tartu, Estonia"]
[Date "2023.05.20"]
[Round "9.1"]
[White "Bekasovs, Rihards"]
[Black "Stauskas, Lukas"]
[Result "0-1"]
[TimeControl "15min + 10sec per move each"]
[WhiteFideId "11606029"]
[BlackFideId "12808148"]
[WhiteElo "2107"]
[BlackElo "2296"]

1. Nf3 {[%clk 00:15:18]} {[%emt 00:00:02]} d5 {[%clk 00:15:18]} {[%emt
00:00:02]} 2. e3 {[%clk 00:15:17]} {[%emt 00:00:11]} c5 {[%clk 00:15:18]}
{[%emt 00:00:10]} 3. c4 {[%clk 00:14:37]} {[%emt 00:00:50]} d4 {[%clk
00:15:05]} {[%emt 00:00:23]} 4. exd4 {[%clk 00:14:46]} {[%emt 00:00:02]} cxd4
{[%clk 00:15:13]} {[%emt 00:00:02]} 5. d3 {[%clk 00:14:52]} {[%emt 00:00:04]}
Nc6 {[%clk 00:15:11]} {[%emt 00:00:11]} 6. g3 {[%clk 00:15:01]} {[%emt
00:00:01]} e5 {[%clk 00:14:38]} {[%emt 00:00:43]} 7. Bg2 {[%clk 00:15:09]}
{[%emt 00:00:01]} Bd6 {[%clk 00:14:29]} {[%emt 00:00:19]} 8. O-O {[%clk
00:15:01]} {[%emt 00:00:18]} Nge7 {[%clk 00:14:24]} {[%emt 00:00:15]} 9. Na3
{[%clk 00:13:59]} {[%emt 00:01:12]} O-O {[%clk 00:14:17]} {[%emt 00:00:17]} 10.
Nc2 {[%clk 00:14:05]} {[%emt 00:00:04]} a5 {[%clk 00:14:06]} {[%emt 00:00:21]}
11. Rb1 {[%clk 00:12:25]} {[%emt 00:01:50]} Bf5 {[%clk 00:13:57]} {[%emt
00:00:19]} 12. Re1 {[%clk 00:11:37]} {[%emt 00:00:58]} Ng6 {[%clk 00:13:12]}
{[%emt 00:00:56]} 13. Ng5 {[%clk 00:11:08]} {[%emt 00:00:38]} Be7 {[%clk
00:11:22]} {[%emt 00:01:59]} 14. Ne4 {[%clk 00:11:02]} {[%emt 00:00:16]} Bc8
{[%clk 00:10:54]} {[%emt 00:00:38]} 15. a3 {[%clk 00:07:41]} {[%emt 00:03:32]}
f5 {[%clk 00:10:49]} {[%emt 00:00:14]} 16. Nd2 {[%clk 00:07:50]} {[%emt
00:00:02]} e4 {[%clk 00:08:37]} {[%emt 00:02:23]} 17. dxe4 {[%clk 00:07:36]}
{[%emt 00:00:24]} f4 {[%clk 00:08:46]} 18. b4 {[%clk 00:04:14]} {[%emt
00:03:32]} d3 {[%clk 00:08:48]} {[%emt 00:00:07]} 19. Na1 {[%clk 00:04:22]}
{[%emt 00:00:02]} axb4 {[%clk 00:08:55]} {[%emt 00:00:02]} 20. axb4 {[%clk
00:04:31]} {[%emt 00:00:02]} fxg3 {[%clk 00:08:40]} {[%emt 00:00:25]} 21. hxg3
{[%clk 00:04:29]} {[%emt 00:00:12]} Bxb4 {[%clk 00:06:27]} {[%emt 00:02:23]} 22.
Nab3 {[%clk 00:03:41]} {[%emt 00:00:58]} Nge5 {[%clk 00:06:25]} {[%emt
00:00:11]} 23. Bb2 {[%clk 00:02:06]} {[%emt 00:01:46]} Bg4 {[%clk 00:06:19]}
{[%emt 00:00:17]} 24. Qc1 {[%clk 00:02:14]} {[%emt 00:00:01]} Nf3+ {[%clk
00:05:46]} {[%emt 00:00:43]} 25. Bxf3 {[%clk 00:01:40]} {[%emt 00:00:44]} Bxf3
{[%clk 00:05:42]} {[%emt 00:00:14]} 26. Nxf3 {[%clk 00:01:17]} {[%emt
00:00:33]} Bxe1 {[%clk 00:04:30]} {[%emt 00:01:22]} 27. Nxe1 {[%clk 00:00:48]}
{[%emt 00:00:39]} Qb6 {[%clk 00:04:39]} 28. Nxd3 {[%clk 00:00:12]} {[%emt
00:00:46]} Qxb3 {[%clk 00:04:45]} {[%emt 00:00:03]} 29. Nc5 {[%emt 00:00:14]}
Qf3 {[%clk 00:04:28]} {[%emt 00:00:25]} 30. Qc2 {[%clk 00:00:12]} {[%emt
00:00:09]} Nb4 {[%clk 00:04:01]} {[%emt 00:00:37]} 31. Qd2 {[%clk 00:00:12]}
{[%emt 00:00:10]} Rad8 {[%clk 00:03:58]} {[%emt 00:00:12]} 32. Qe1 {[%clk
00:00:21]} {[%emt 00:00:01]} Nc2 {[%clk 00:03:50]} {[%emt 00:00:18]} 33. Qf1
{[%clk 00:00:16]} {[%emt 00:00:15]} Ne3 {[%clk 00:03:46]} {[%emt 00:00:14]} 34.
fxe3 {[%clk 00:00:13]} {[%emt 00:00:14]} Qxe3+ {[%clk 00:03:54]} {[%emt
00:00:02]} 0-1

[Event "SELL Games"]
[Site "Tartu, Estonia"]
[Date "2023.05.20"]
[Round "9.2"]
[White "Piksis, Davids"]
[Black "Vardanyan, Aras"]
[Result "0-1"]
[TimeControl "15min + 10sec per move each"]
[BlackTitle "FM"]
[WhiteFideId "11609117"]
[BlackFideId "12808792"]
[WhiteElo "1770"]
[BlackElo "2255"]

1. e4 {[%clk 00:15:19]} c5 {[%clk 00:15:16]} {[%emt 00:00:04]} 2. Nf3 {[%clk
00:15:19]} {[%emt 00:00:10]} d6 {[%clk 00:15:25]} 3. Bb5+ {[%clk 00:15:19]}
{[%emt 00:00:11]} Nd7 {[%clk 00:15:32]} {[%emt 00:00:03]} 4. d4 {[%clk
00:15:04]} {[%emt 00:00:25]} cxd4 {[%clk 00:15:36]} {[%emt 00:00:06]} 5. Nxd4
{[%clk 00:14:42]} {[%emt 00:00:33]} Ngf6 {[%clk 00:15:45]} {[%emt 00:00:01]} 6.
Nc3 {[%clk 00:14:44]} {[%emt 00:00:08]} g6 {[%clk 00:15:48]} {[%emt 00:00:07]}
7. O-O {[%clk 00:14:27]} {[%emt 00:00:26]} Bg7 {[%clk 00:15:56]} {[%emt
00:00:01]} 8. a4 {[%clk 00:12:45]} {[%emt 00:01:53]} O-O {[%clk 00:15:54]}
{[%emt 00:00:12]} 9. Bxd7 {[%clk 00:12:52]} {[%emt 00:00:03]} Bxd7 {[%clk
00:15:55]} {[%emt 00:00:09]} 10. a5 {[%clk 00:12:51]} {[%emt 00:00:11]} a6
{[%clk 00:15:40]} {[%emt 00:00:25]} 11. Re1 {[%clk 00:11:56]} {[%emt 00:01:04]}
Rc8 {[%clk 00:15:48]} {[%emt 00:00:02]} 12. Ra3 {[%clk 00:11:25]} {[%emt
00:00:42]} e6 {[%clk 00:15:37]} {[%emt 00:00:21]} 13. Re3 {[%clk 00:09:36]}
{[%emt 00:01:59]} Qc7 {[%clk 00:14:57]} {[%emt 00:00:51]} 14. Rd3 {[%clk
00:09:19]} {[%emt 00:00:26]} Rfd8 {[%clk 00:15:03]} {[%emt 00:00:04]} 15. Bg5
{[%clk 00:08:51]} {[%emt 00:00:39]} h6 {[%clk 00:15:09]} {[%emt 00:00:04]} 16.
Bh4 {[%clk 00:08:18]} {[%emt 00:00:42]} Be8 {[%clk 00:14:11]} {[%emt 00:01:08]}
17. f4 {[%clk 00:01:30]} {[%emt 00:06:58]} Qb8 {[%clk 00:12:56]} {[%emt
00:01:25]} 18. Qe2 {[%clk 00:01:10]} {[%emt 00:00:30]} e5 {[%clk 00:12:54]}
{[%emt 00:00:12]} 19. Bxf6 {[%clk 00:00:54]} {[%emt 00:00:26]} Bxf6 {[%clk
00:13:02]} {[%emt 00:00:02]} 20. Nd5 {[%clk 00:00:51]} {[%emt 00:00:13]} Bg7
{[%clk 00:13:09]} {[%emt 00:00:02]} 21. Ne7+ {[%clk 00:00:30]} {[%emt
00:00:31]} Kf8 {[%clk 00:13:18]} {[%emt 00:00:01]} 22. Nxc8 {[%clk 00:00:40]}
{[%emt 00:00:01]} Rxc8 {[%clk 00:13:16]} {[%emt 00:00:12]} 23. fxe5 {[%clk
00:00:22]} {[%emt 00:00:28]} dxe5 {[%clk 00:13:24]} {[%emt 00:00:02]} 24. Nf3
{[%clk 00:00:15]} {[%emt 00:00:17]} Bb5 {[%clk 00:13:32]} {[%emt 00:00:02]} 25.
Qd2 {[%clk 00:00:16]} {[%emt 00:00:09]} Bxd3 {[%clk 00:13:39]} {[%emt
00:00:03]} 26. Rxd3 {[%clk 00:00:24]} {[%emt 00:00:02]} Qc7 {[%clk 00:12:51]}
{[%emt 00:00:59]} 27. Rc3 {[%clk 00:00:24]} {[%emt 00:00:09]} Qb8 {[%clk
00:12:51]} {[%emt 00:00:11]} 28. Rd3 {[%clk 00:00:31]} {[%emt 00:00:04]} Kg8
{[%clk 00:12:57]} {[%emt 00:00:04]} 29. h3 {[%clk 00:00:35]} {[%emt 00:00:06]}
Qa7+ {[%clk 00:12:40]} {[%emt 00:00:27]} 30. Kh2 {[%clk 00:00:41]} {[%emt
00:00:03]} Qc5 {[%clk 00:12:42]} {[%emt 00:00:08]} 31. Rd7 {[%clk 00:00:25]}
{[%emt 00:00:26]} Qc6 {[%clk 00:12:38]} {[%emt 00:00:14]} 32. c3 {[%clk
00:00:21]} {[%emt 00:00:15]} Qxe4 {[%clk 00:11:51]} {[%emt 00:00:58]} 33. Rxf7
{[%clk 00:00:30]} Kxf7 {[%emt 00:00:01]} 34. Qd7+ Kg8 {[%clk 00:12:08]} {[%emt
00:00:01]} 35. Qxc8+ {[%clk 00:00:49]} {[%emt 00:00:01]} Kh7 {[%clk 00:12:17]}
36. Qg4 {[%clk 00:00:20]} {[%emt 00:00:38]} Qd5 {[%clk 00:12:15]} {[%emt
00:00:12]} 37. Nh4 {[%clk 00:00:17]} {[%emt 00:00:13]} Qc6 {[%clk 00:12:02]}
{[%emt 00:00:23]} 38. Qf3 {[%clk 00:00:21]} {[%emt 00:00:06]} e4 {[%clk
00:12:05]} {[%emt 00:00:07]} 39. Qe3 {[%clk 00:00:14]} {[%emt 00:00:17]} Qd5
{[%clk 00:11:56]} {[%emt 00:00:18]} 40. g3 {[%clk 00:00:16]} {[%emt 00:00:08]}
Be5 {[%clk 00:11:14]} {[%emt 00:00:51]} 41. Ng2 {[%clk 00:00:15]} {[%emt
00:00:11]} g5 {[%clk 00:10:44]} {[%emt 00:00:40]} 42. Qe2 {[%clk 00:00:13]}
{[%emt 00:00:13]} Kg6 {[%clk 00:10:47]} {[%emt 00:00:07]} 43. Ne3 {[%clk
00:00:13]} {[%emt 00:00:10]} Qd3 {[%clk 00:09:51]} {[%emt 00:01:05]} 44. Qf2
{[%clk 00:00:16]} {[%emt 00:00:07]} Qd7 {[%clk 00:09:49]} {[%emt 00:00:13]} 45.
Qe2 {[%clk 00:00:11]} {[%emt 00:00:15]} h5 {[%clk 00:09:44]} {[%emt 00:00:15]}
46. Kg2 {[%clk 00:00:20]} {[%emt 00:00:01]} Bc7 {[%clk 00:09:42]} {[%emt
00:00:12]} 47. Nc4 {[%clk 00:00:16]} {[%emt 00:00:14]} Qd5 {[%clk 00:09:47]}
{[%emt 00:00:05]} 48. Ne3 {[%clk 00:00:14]} {[%emt 00:00:13]} Qe5 {[%clk
00:09:18]} {[%emt 00:00:39]} 49. Qf2 {[%clk 00:00:12]} {[%emt 00:00:11]} h4
{[%clk 00:08:54]} {[%emt 00:00:34]} 50. gxh4 {[%clk 00:00:12]} {[%emt
00:00:11]} Qh2+ {[%clk 00:09:02]} {[%emt 00:00:01]} 51. Kf1 {[%clk 00:00:21]}
{[%emt 00:00:01]} Qxh3+ {[%clk 00:09:10]} {[%emt 00:00:02]} 52. Ke2 {[%clk
00:00:20]} {[%emt 00:00:11]} gxh4 {[%clk 00:09:09]} {[%emt 00:00:11]} 53. Qf8
{[%clk 00:00:14]} {[%emt 00:00:16]} Qe6 {[%clk 00:08:33]} {[%emt 00:00:46]} 54.
Qh8 {[%clk 00:00:14]} {[%emt 00:00:10]} h3 {[%clk 00:08:38]} {[%emt 00:00:05]}
55. Nf1 {[%clk 00:00:12]} {[%emt 00:00:13]} Qg4+ {[%clk 00:08:24]} {[%emt
00:00:23]} 56. Ke1 {[%clk 00:00:14]} {[%emt 00:00:08]} Bg3+ {[%clk 00:08:12]}
{[%emt 00:00:22]} 57. Kd2 {[%clk 00:00:11]} {[%emt 00:00:13]} Qf4+ {[%clk
00:08:17]} {[%emt 00:00:05]} 58. Ne3 {[%clk 00:00:13]} {[%emt 00:00:09]} Qf2+
{[%clk 00:08:25]} {[%emt 00:00:02]} 59. Kd1 {[%clk 00:00:21]} {[%emt 00:00:02]}
Qxe3 {[%clk 00:08:28]} {[%emt 00:00:07]} 60. Qg8+ {[%clk 00:00:23]} {[%emt
00:00:08]} Kh5 {[%clk 00:08:32]} {[%emt 00:00:05]} 61. Qf7+ {[%clk 00:00:27]}
{[%emt 00:00:07]} Kg4 {[%clk 00:08:39]} {[%emt 00:00:02]} 62. Qe6+ {[%clk
00:00:28]} {[%emt 00:00:09]} Kf3 {[%clk 00:08:40]} {[%emt 00:00:10]} 63. Qxh3
{[%clk 00:00:27]} {[%emt 00:00:11]} Qg1+ {[%clk 00:08:36]} {[%emt 00:00:14]}
0-1

[Event "SELL Games"]
[Site "Tartu, Estonia"]
[Date "2023.05.20"]
[Round "9.3"]
[White "Sirp, Karl Aleksander"]
[Black "Perminaite, Guoda"]
[Result "0-1"]
[TimeControl "15min + 10sec per move each"]
[WhiteFideId "4504712"]
[BlackFideId "12808784"]
[WhiteElo "2033"]
[BlackElo "1725"]

1. d4 {[%clk 00:15:18]} {[%emt 00:00:01]} d5 {[%clk 00:15:20]} 2. Bf4 {[%clk
00:15:26]} {[%emt 00:00:02]} Nf6 {[%clk 00:15:29]} {[%emt 00:00:02]} 3. Nf3
{[%clk 00:15:35]} {[%emt 00:00:01]} e6 {[%clk 00:15:38]} 4. e3 {[%clk
00:15:43]} {[%emt 00:00:02]} c5 {[%clk 00:15:47]} 5. c3 {[%clk 00:15:48]}
{[%emt 00:00:05]} Bd6 {[%clk 00:15:56]} {[%emt 00:00:01]} 6. Ne5 {[%clk
00:15:56]} {[%emt 00:00:01]} Qc7 {[%clk 00:15:33]} {[%emt 00:00:34]} 7. Nd2
{[%clk 00:15:54]} {[%emt 00:00:12]} O-O {[%clk 00:15:30]} {[%emt 00:00:13]} 8.
Bd3 {[%clk 00:15:48]} {[%emt 00:00:16]} Nc6 {[%clk 00:15:31]} {[%emt 00:00:09]}
9. Ndf3 {[%clk 00:15:42]} {[%emt 00:00:16]} b6 {[%clk 00:15:30]} {[%emt
00:00:12]} 10. g4 {[%clk 00:14:58]} {[%emt 00:00:53]} Bb7 {[%clk 00:15:00]}
{[%emt 00:00:41]} 11. h4 {[%clk 00:14:32]} {[%emt 00:00:36]} Ne7 {[%clk
00:13:16]} {[%emt 00:01:53]} 12. h5 {[%clk 00:13:33]} {[%emt 00:01:08]} Ne4
{[%clk 00:13:13]} {[%emt 00:00:13]} 13. g5 {[%clk 00:07:55]} {[%emt 00:05:48]}
f6 {[%clk 00:11:11]} {[%emt 00:02:12]} 14. gxf6 {[%clk 00:07:20]} {[%emt
00:00:46]} Nxf6 {[%clk 00:10:27]} {[%emt 00:00:54]} 15. Ng5 {[%clk 00:06:57]}
{[%emt 00:00:33]} Bc8 {[%clk 00:08:54]} {[%emt 00:01:44]} 16. Rg1 {[%clk
00:05:26]} {[%emt 00:01:41]} Nf5 {[%clk 00:07:12]} {[%emt 00:01:51]} 17. Qc2
{[%clk 00:04:48]} {[%emt 00:00:48]} Nxh5 {[%clk 00:06:47]} {[%emt 00:00:35]} 18.
O-O-O {[%clk 00:04:06]} {[%emt 00:00:53]} cxd4 {[%clk 00:06:26]} {[%emt
00:00:31]} 19. Rh1 {[%clk 00:02:58]} {[%emt 00:01:19]} Nxf4 {[%clk 00:06:09]}
{[%emt 00:00:26]} 20. exf4 {[%clk 00:02:44]} {[%emt 00:00:24]} dxc3 {[%clk
00:05:40]} {[%emt 00:00:40]} 21. bxc3 {[%clk 00:01:38]} {[%emt 00:01:16]} Bxe5
{[%clk 00:05:44]} {[%emt 00:00:06]} 22. fxe5 {[%clk 00:01:47]} h6 {[%clk
00:04:31]} {[%emt 00:01:22]} 23. Nf3 {[%clk 00:01:41]} {[%emt 00:00:16]} Bb7
{[%clk 00:04:40]} {[%emt 00:00:02]} 24. Rh3 {[%clk 00:01:04]} {[%emt 00:00:47]}
Rac8 {[%clk 00:04:43]} {[%emt 00:00:06]} 25. Kb2 {[%clk 00:01:01]} {[%emt
00:00:13]} d4 {[%clk 00:03:58]} {[%emt 00:00:55]} 26. Nxd4 {[%clk 00:00:57]}
{[%emt 00:00:14]} Nxd4 {[%clk 00:04:00]} {[%emt 00:00:09]} 27. cxd4 {[%clk
00:01:06]} Qxc2+ {[%clk 00:04:06]} {[%emt 00:00:04]} 28. Bxc2 {[%clk 00:01:14]}
{[%emt 00:00:02]} Rxf2 {[%clk 00:04:13]} {[%emt 00:00:03]} 29. Rc3 {[%clk
00:01:22]} {[%emt 00:00:02]} Rxc3 {[%clk 00:02:47]} {[%emt 00:01:36]} 30. Kxc3
{[%clk 00:01:31]} Bd5 {[%clk 00:02:50]} {[%emt 00:00:07]} 31. a4 {[%clk
00:01:19]} {[%emt 00:00:22]} g5 {[%clk 00:02:06]} {[%emt 00:00:54]} 32. a5
{[%clk 00:01:12]} {[%emt 00:00:17]} bxa5 {[%clk 00:01:34]} {[%emt 00:00:42]} 33.
Rb1 {[%clk 00:01:21]} {[%emt 00:00:01]} g4 {[%clk 00:01:31]} {[%emt 00:00:13]}
34. Rb8+ {[%clk 00:00:52]} {[%emt 00:00:39]} Kg7 {[%clk 00:01:37]} {[%emt
00:00:03]} 35. Rd8 {[%clk 00:00:54]} {[%emt 00:00:09]} g3 {[%clk 00:01:38]}
{[%emt 00:00:09]} 36. Rd7+ {[%clk 00:00:59]} {[%emt 00:00:05]} Rf7 {[%clk
00:01:46]} {[%emt 00:00:02]} 0-1

[Event "SELL Games"]
[Site "Tartu, Estonia"]
[Date "2023.05.20"]
[Round "9.4"]
[White "Obolonin, Filipp"]
[Black "Laurusas, Tomas"]
[Result "0-1"]
[TimeControl "15min + 10sec per move each"]
[BlackTitle "GM"]
[WhiteFideId "4505549"]
[BlackFideId "12803731"]
[WhiteElo "2017"]
[BlackElo "2504"]

1. d4 {[%clk 00:15:18]} {[%emt 00:00:02]} Nf6 {[%clk 00:15:19]} {[%emt
00:00:01]} 2. Nf3 {[%clk 00:15:27]} d5 {[%clk 00:15:23]} {[%emt 00:00:07]} 3.
g3 {[%clk 00:15:31]} {[%emt 00:00:07]} Bf5 {[%clk 00:15:29]} {[%emt 00:00:04]}
4. Bg2 {[%clk 00:15:39]} {[%emt 00:00:02]} e6 {[%clk 00:15:38]} 5. O-O {[%clk
00:15:47]} {[%emt 00:00:02]} Be7 {[%clk 00:15:44]} {[%emt 00:00:03]} 6. c4
{[%clk 00:15:56]} {[%emt 00:00:01]} c6 {[%clk 00:15:53]} {[%emt 00:00:01]} 7.
Nc3 {[%clk 00:16:05]} {[%emt 00:00:01]} O-O {[%clk 00:16:01]} {[%emt 00:00:02]}
8. Nd2 {[%emt 00:00:05]} Nbd7 {[%clk 00:16:04]} {[%emt 00:00:03]} 9. e4 {[%clk
00:16:23]} {[%emt 00:00:01]} dxe4 {[%clk 00:16:13]} 10. Ndxe4 {[%clk 00:16:32]}
{[%emt 00:00:01]} Nxe4 {[%clk 00:16:21]} {[%emt 00:00:02]} 11. Nxe4 {[%clk
00:16:41]} {[%emt 00:00:01]} Nf6 {[%clk 00:16:29]} {[%emt 00:00:02]} 12. Nc3
{[%clk 00:16:50]} Qb6 {[%clk 00:16:35]} {[%emt 00:00:04]} 13. c5 {[%clk
00:15:54]} {[%emt 00:01:06]} Qd8 {[%clk 00:16:21]} {[%emt 00:00:24]} 14. h3
{[%clk 00:15:55]} {[%emt 00:00:09]} Re8 {[%clk 00:16:11]} {[%emt 00:00:20]} 15.
Be3 {[%clk 00:16:04]} {[%emt 00:00:01]} Nd5 {[%clk 00:16:19]} {[%emt 00:00:02]}
16. Nxd5 {[%clk 00:16:11]} {[%emt 00:00:03]} exd5 {[%clk 00:16:28]} 17. Qb3
{[%clk 00:16:16]} {[%emt 00:00:05]} Qd7 {[%clk 00:16:36]} {[%emt 00:00:01]} 18.
g4 {[%clk 00:16:24]} {[%emt 00:00:02]} Bg6 {[%clk 00:16:22]} {[%emt 00:00:24]}
19. f4 {[%clk 00:15:52]} {[%emt 00:00:42]} Be4 {[%clk 00:16:31]} 20. f5 {[%clk
00:15:29]} {[%emt 00:00:33]} Bh4 {[%clk 00:16:25]} {[%emt 00:00:15]} 21. Bf2
{[%clk 00:14:50]} {[%emt 00:00:50]} Bf6 {[%clk 00:15:43]} {[%emt 00:00:51]} 22.
Rfe1 {[%clk 00:14:25]} {[%emt 00:00:32]} Re7 {[%clk 00:15:45]} {[%emt
00:00:12]} 23. Re2 {[%clk 00:13:54]} {[%emt 00:00:42]} Bxg2 {[%clk 00:14:52]}
{[%emt 00:01:03]} 24. Rxe7 {[%clk 00:14:02]} {[%emt 00:00:02]} Qxe7 {[%clk
00:15:01]} {[%emt 00:00:01]} 25. Kxg2 {[%clk 00:14:10]} {[%emt 00:00:02]} Bxd4
{[%clk 00:15:10]} {[%emt 00:00:02]} 26. Re1 {[%clk 00:13:44]} {[%emt 00:00:36]}
Be5 {[%clk 00:15:14]} {[%emt 00:00:06]} 27. Bh4 {[%clk 00:12:29]} {[%emt
00:01:25]} f6 {[%clk 00:15:04]} {[%emt 00:00:21]} 28. g5 {[%clk 00:12:04]}
{[%emt 00:00:34]} Qf7 {[%clk 00:13:38]} {[%emt 00:01:36]} 29. gxf6 {[%clk
00:12:02]} {[%emt 00:00:13]} gxf6 {[%clk 00:13:46]} {[%emt 00:00:01]} 30. Kh1
{[%clk 00:10:11]} {[%emt 00:02:00]} Kh8 {[%clk 00:13:23]} {[%emt 00:00:33]} 31.
Qc2 {[%clk 00:06:35]} {[%emt 00:03:47]} Rg8 {[%clk 00:12:22]} {[%emt 00:01:10]}
32. Qe2 {[%clk 00:06:43]} {[%emt 00:00:02]} d4 {[%clk 00:12:27]} {[%emt
00:00:05]} 0-1